bitfinex/quotes_ETHUSD_20251215
["timestamp","ask_amount","ask_price","bid_price","bid_amount"]
[1765799671386,0.002,3157.6,3157.2,3.16735891]
[1765799672173,0.002,3157.6,3157.2,6.33472239]
[1765799673601,0.002,3157.6,3157.2,3.16735891]
[1765799674094,0.002,3157.6,3157.2,6.33472239]
[1765799674302,0.002,3157.6,3157.2,7.00884503]
[1765799680000,0.0012,3157.6,3157.2,7.00884503]
[1765799680369,0.0012,3157.6,3157.2,3.84148155]
[1765799680600,0.0012,3157.6,3157.2,3.16736033]
[1765799682197,0.0012,3157.6,3157.1,0.001]
[1765799702156,0.0004,3157.6,3157.1,0.001]
[1765799725221,0.0004,3157.6,3157.2,4.33582074]
[1765799725391,0.0016,3157.7,3157.1,0.001]
[1765799725598,0.0016,3157.7,3157.2,0.99101964]
[1765799725816,0.0016,3157.7,3157.1,0.001]
[1765799726630,0.002,3157.6,3157.1,0.001]
[1765799730144,0.002,3157.6,3157.1,0.98697929]
[1765799730367,0.002,3157.6,3157.5,0.405504]
[1765799730571,0.002,3157.6,3157.5,0.906504]
[1765799731058,0.002,3157.6,3157.5,1.99372919]
[1765799732052,0.002,3157.6,3157.5,5.74126702]
[1765799733168,0.002,3157.6,3157.5,5.24026702]
[1765799733535,0.002,3157.6,3157.5,5.74126702]
[1765799735972,0.002,3157.6,3157.5,4.25428773]
[1765799736171,0.002,3157.6,3157.5,3.67206254]
[1765799736349,0.002,3157.6,3157.5,8.00733514]
[1765799738267,0.002,3157.6,3157.1,0.001]
[1765799738741,0.002,3157.6,3157.3,3.16721008]
[1765799738942,0.002,3157.6,3157.1,4.3362726]
[1765799739143,0.002,3157.6,3157.4,3.16708923]
[1765799739369,0.002,3157.6,3157.3,3.16723747]
[1765799739538,0.002,3157.6,3157.5,0.001]
[1765799748662,0.0012,3157.6,3157.5,0.001]
[1765799752299,0.0012,3157.6,3157.5,4.3362726]
[1765799752504,0.0012,3157.6,3157.5,5.17540386]
[1765799754379,0.0012,3157.6,3157.5,8.3424664]
[1765799754805,0.0012,3157.6,3157.5,8.46924225]
[1765799755404,0.0012,3157.6,3157.5,8.97024225]
[1765799755701,0.0012,3157.6,3157.5,8.3424664]
[1765799757308,0.0012,3157.6,3157.5,7.9369624]
[1765799762006,0.0012,3157.6,3157.5,0.001]
[1765799772010,0.12723011,3157.6,3157.5,0.001]
[1765799773407,0.13990318,3157.6,3157.5,0.001]
[1765799773810,3.30686542,3157.6,3157.5,0.001]
[1765799774017,3.29419235,3157.6,3157.5,0.001]
[1765799774329,3.94173047,3157.6,3157.5,0.001]
[1765799781215,4.44273047,3157.6,3157.5,0.001]
[1765799784036,0.0016,3157.7,3157.6,0.405504]
[1765799784237,0.0016,3157.7,3157.6,0.906504]
[1765799784420,0.0016,3157.7,3157.5,0.12776982]
[1765799784619,0.0016,3157.7,3157.5,0.001]
[1765799785755,0.0016,3157.7,3157.5,3.16806254]
[1765799786058,0.0016,3157.7,3157.6,1.07971825]
[1765799787749,0.0016,3157.7,3157.6,4.24668049]
[1765799789124,0.0016,3157.7,3157.6,8.57985026]
[1765799789460,0.0016,3157.7,3157.6,8.57982513]
[1765799793857,0.0016,3157.7,3157.6,13.89894906]
[1765799794172,0.002,3157.9,3157.8,0.405504]
[1765799794370,0.002,3157.9,3157.8,2.66358459]
[1765799794563,0.002,3157.9,3157.8,5.83034625]
[1765799794770,0.002,3157.9,3157.8,6.41082154]
[1765799795664,0.0012,3157.9,3157.8,6.41082154]
[1765799796054,0.0012,3157.9,3157.8,10.74396618]
[1765799797044,0.0012,3157.9,3157.8,6.41082154]
[1765799799191,0.0012,3157.9,3157.8,15.07711082]
[1765799799386,0.0012,3157.9,3157.8,15.56933232]
[1765799800060,0.0012,3157.9,3157.8,15.07711082]
[1765799800457,0.002,3158.9,3158.0,0.405504]
[1765799800679,0.002,3158.9,3158.0,7.14351118]
[1765799801180,0.002,3158.9,3158.0,10.31007229]
[1765799801401,0.002,3158.9,3158.0,24.14290026]
[1765799801716,0.002,3158.9,3158.8,9.65226857]
[1765799802479,0.002,3158.9,3158.8,4.33314464]
[1765799802976,0.002,3158.9,3158.8,7.49890378]
[1765799803177,0.002,3158.9,3158.8,9.02098395]
[1765799803676,0.002,3158.9,3158.8,13.35412859]
[1765799805064,0.002,3158.9,3158.8,9.02098395]
[1765799810667,0.002,3158.9,3158.8,8.61547995]
[1765799810859,0.002,3158.9,3158.8,7.49890378]
[1765799811682,0.002,3158.9,3158.8,4.33314464]
[1765799811882,0.002,3158.9,3158.8,7.49890378]
[1765799812792,0.002,3158.9,3158.8,4.33314464]
[1765799813262,0.002,3158.9,3158.8,7.49890378]
[1765799818601,0.0012,3158.9,3158.8,4.33314464]
[1765799818892,0.0012,3158.9,3158.4,4.33314464]
[1765799819066,0.0012,3158.9,3158.6,4.33314464]
[1765799820891,0.0012,3158.9,3158.1,7.49955449]
[1765799821077,0.0012,3158.9,3158.3,4.33314464]
[1765799825096,3.16575914,3158.8,3158.3,4.33314464]
[1765799825391,6.33151828,3158.8,3158.1,4.33314464]
[1765799828969,0.501,3158.7,3158.1,4.33314464]
[1765799829173,3.1659596,3158.6,3158.1,4.33314464]
[1765799829902,6.3319192,3158.6,3158.1,4.33314464]
[1765799830104,0.68329192,3158.5,3158.1,4.33314464]
[1765799831096,0.68329192,3158.5,3158.1,7.4995959]
[1765799831277,0.501,3158.7,3158.4,4.33314464]
[1765799831477,0.0012,3158.9,3158.4,4.33314464]
[1765799831683,0.0012,3158.9,3158.8,4.33314464]
[1765799833581,0.0012,3158.9,3158.8,7.49890378]
[1765799836608,0.0012,3158.9,3158.8,7.90440778]
[1765799836906,0.0012,3158.9,3158.8,9.06153435]
[1765799841716,0.0004,3158.9,3158.8,9.06153435]
[1765799843612,0.0004,3158.9,3158.8,4.72838971]
[1765799843797,0.0004,3158.9,3158.8,9.06153435]
[1765799843992,0.0004,3158.9,3158.8,8.65603035]
[1765799845105,3.64133471,3159.5,3158.8,11.82178949]
[1765799845308,0.36413347,3159.4,3159.1,4.33314464]
[1765799846209,0.47627584,3159.5,3159.1,4.33314464]
[1765799846416,0.47627584,3159.5,3159.4,4.33314464]
[1765799849619,3.64133474,3159.5,3158.9,3.16561884]
[1765799851422,3.64133474,3159.5,3158.8,3.16572383]
[1765799851622,0.68062928,3159.4,3158.8,3.16572383]
[1765799853324,0.68062928,3159.4,3158.7,7.49488816]
[1765799853504,3.16525812,3159.3,3158.7,7.49488816]
[1765799853708,3.84581992,3159.4,3158.7,10.66074753]
[1765799853904,3.84581992,3159.4,3158.8,0.001]
[1765799855298,3.16519064,3159.4,3158.8,0.001]
[1765799856000,3.16519064,3159.4,3158.8,4.33061814]
[1765799857124,3.16519064,3159.4,3158.8,0.001]
[1765799860252,6.33038128,3159.4,3158.8,0.001]
[1765799861045,3.16519064,3159.4,3158.8,0.001]
[1765799861341,0.68085573,3159.3,3158.8,0.001]
[1765799862752,3.84617226,3159.3,3158.8,0.001]
[1765799865023,3.84537226,3159.3,3158.8,0.001]
[1765799868065,7.01068879,3159.3,3158.8,0.001]
[1765799868248,3.84537226,3159.3,3158.8,0.001]
[1765799868424,0.38473723,3159.2,3158.8,0.001]
[1765799870472,3.55012201,3159.2,3158.8,0.001]
[1765799871278,0.5,3159.1,3158.8,0.001]
[1765799879083,6.8309204,3159.1,3158.8,0.001]
[1765799879669,0.01267307,3158.9,3158.8,0.001]
[1765799879872,0.75507995,3158.9,3158.8,0.001]
[1765799881180,4.50121417,3158.9,3158.8,0.001]
[1765799888302,4.50041417,3158.9,3158.8,0.001]
[1765799890295,4.4885411,3158.9,3158.8,0.001]
[1765799892279,4.9885411,3158.9,3158.8,0.001]
[1765799897304,5.00121417,3158.9,3158.8,0.001]
[1765799909129,5.95207826,3158.9,3158.8,0.001]
[1765799911738,5.95127826,3158.9,3158.8,0.001]
[1765799912402,5.95327826,3158.9,3158.8,0.001]
[1765799926568,5.94060519,3158.9,3158.8,0.001]
[1765799929478,0.002,3158.9,3158.8,0.001]
[1765799929646,0.502,3158.9,3158.8,0.001]
[1765799932674,0.002,3158.9,3158.8,0.001]
[1765799934975,0.0012,3158.9,3158.8,0.001]
[1765799935181,0.0012,3158.9,3158.8,4.33342897]
[1765799935852,0.0012,3158.9,3158.8,4.76677187]
[1765799936682,0.0012,3158.9,3158.8,0.4343429]
[1765799938504,0.0012,3158.9,3158.8,0.001]
[1765799943995,0.0012,3158.9,3158.8,3.16675914]
[1765799958127,0.0004,3158.9,3158.8,3.16675914]
[1765799970314,0.0004,3158.9,3158.8,0.001]
[1765799971343,0.5004,3158.9,3158.8,0.001]
[1765799971726,3.66605893,3158.9,3158.8,0.001]
[1765799972343,4.399221,3158.9,3158.8,0.001]
[1765799977058,0.5004,3158.9,3158.8,0.001]
[1765799978062,3.66605893,3158.9,3158.8,0.001]
[1765799981463,3.66525893,3158.9,3158.8,0.001]
[1765799983866,3.66725893,3158.9,3158.8,0.001]
[1765799988139,3.79402755,3158.9,3158.8,0.001]
[1765799988440,1.32559467,3158.9,3158.8,0.001]
[1765799988637,4.4912536,3158.9,3158.8,0.001]
[1765799989570,3.79402755,3158.9,3158.8,0.001]
[1765799991241,0.12876862,3158.9,3158.8,0.001]
[1765799991443,0.62876862,3158.9,3158.8,0.001]
[1765799992171,3.79442755,3158.9,3158.8,0.001]
[1765799994278,0.62876862,3158.9,3158.8,0.001]
[1765799994451,3.79442755,3158.9,3158.8,0.001]
[1765799995979,0.62876862,3158.9,3158.8,0.001]
[1765799999081,3.79442755,3158.9,3158.8,0.001]
[1765799999484,0.62876862,3158.9,3158.8,0.001]
[1765799999655,3.79442755,3158.9,3158.8,0.001]
[1765800001976,3.66765893,3158.9,3158.8,0.001]
[1765800002366,4.1571163,3158.9,3158.8,0.001]
[1765800002885,3.66765893,3158.9,3158.8,0.001]
[1765800004793,0.0012,3158.9,3158.8,0.001]
[1765800005089,0.5012,3158.9,3158.8,0.001]
[1765800005995,3.66685893,3158.9,3158.8,0.001]
[1765800006582,0.5012,3158.9,3158.8,0.001]
[1765800006775,3.66685893,3158.9,3158.8,0.001]
[1765800006980,0.5012,3158.9,3158.8,0.001]
[1765800008695,0.0012,3158.9,3158.8,0.001]
[1765800010298,0.0012,3158.9,3158.8,4.73780871]
[1765800010482,0.0012,3158.9,3158.8,5.21475554]
[1765800010893,0.0012,3158.9,3158.8,8.38051468]
[1765800013804,0.0012,3158.9,3158.8,0.001]
[1765800014801,0.0012,3158.9,3158.8,3.16675914]
[1765800015000,0.0012,3158.9,3158.8,3.57226314]
[1765800015299,0.0012,3158.9,3158.8,4.5226814]
[1765800017877,0.0012,3158.9,3158.8,4.55433899]
[1765800018077,0.0012,3158.9,3158.8,5.72783137]
[1765800018781,0.0012,3158.9,3158.8,9.10871782]
[1765800019392,0.0012,3158.9,3158.8,9.23544426]
[1765800019877,0.0012,3158.9,3158.8,9.10871782]
[1765800026610,0.0012,3158.9,3158.8,4.77741311]
[1765800026796,0.0012,3158.9,3158.8,9.10871782]
[1765800028013,0.0004,3158.9,3158.8,9.10871782]
[1765800030001,0.4753703,3159.5,3158.9,0.405504]
[1765800030511,0.4753703,3159.5,3158.8,11.86897296]
[1765800030885,3.64043208,3159.5,3158.8,3.16675914]
[1765800031191,3.64043208,3159.5,3158.8,0.001]
[1765800031192,6.81816693,3159.5,3158.8,0.001]
[1765800032910,7.76876889,3159.5,3158.8,0.001]
[1765800034505,7.77076889,3159.5,3158.8,0.001]
[1765800034720,0.77707689,3159.4,3158.8,0.001]
[1765800034902,0.78974996,3159.4,3158.8,0.001]
[1765800035284,0.01267307,3159.2,3158.8,0.001]
[1765800036115,3.16545851,3159.1,3158.8,0.001]
[1765800036320,0.5,3159.0,3158.8,0.001]
[1765800036497,1.03441969,3159.0,3158.8,0.001]
[1765800039816,3.16565893,3158.9,3158.8,0.001]
[1765800040001,3.74613422,3158.9,3158.8,0.001]
[1765800040313,4.69704955,3158.9,3158.8,0.001]
[1765800041515,5.19704955,3158.9,3158.8,0.001]
[1765800041720,6.08801969,3158.9,3158.8,0.001]
[1765800048323,6.05698999,3158.9,3158.8,0.001]
[1765800051328,6.05618999,3158.9,3158.8,0.001]
[1765800053320,10.3869635,3158.9,3158.8,0.001]
[1765800055919,33.6061725,3158.9,3158.8,0.001]
[1765800056832,40.39123435,3158.9,3158.8,0.001]
[1765800057800,40.79673835,3158.9,3158.8,0.001]
[1765800058537,40.79673835,3158.9,3158.0,0.001]
[1765800058538,0.98597929,3158.8,3158.0,0.001]
[1765800058713,9.25056401,3158.1,3158.0,0.001]
[1765800058912,39.04987685,3158.1,3158.0,0.001]
[1765800059618,39.17671259,3158.1,3158.0,0.001]
[1765800059819,40.38944359,3158.1,3158.0,0.001]
[1765800060009,42.73421893,3158.1,3158.0,0.001]
[1765800060209,38.36814487,3158.1,3158.0,0.001]
[1765800060619,36.93822887,3158.1,3158.0,0.001]
[1765800060804,11.02256187,3158.1,3158.0,0.001]
[1765800061011,11.05359157,3158.1,3158.0,0.001]
[1765800061425,6.71854721,3158.1,3158.0,0.001]
[1765800061610,4.38644494,3158.1,3158.0,0.001]
[1765800066330,4.35541524,3158.1,3158.0,0.001]
[1765800072028,8.6904596,3158.1,3158.0,0.001]
[1765800074633,8.6896596,3158.1,3158.0,0.001]
[1765800075626,13.02470396,3158.1,3158.0,0.001]
[1765800075831,14.64507783,3158.1,3158.0,0.001]
[1765800077442,0.98597929,3158.0,3157.8,0.001]
[1765800077740,34.92819272,3157.9,3157.8,0.001]
[1765800077942,35.33369672,3157.9,3157.8,0.001]
[1765800078111,38.67015893,3157.9,3157.8,0.001]
[1765800078538,38.63912923,3157.9,3157.8,0.001]
[1765800079407,41.80579061,3157.9,3157.8,0.001]
[1765800083222,0.98597929,3157.6,3157.5,0.001]
[1765800083522,37.07984481,3157.6,3157.5,0.001]
[1765800083731,39.00065896,3157.6,3157.5,0.001]
[1765800083934,39.12752568,3157.6,3157.5,0.001]
[1765800084135,43.46257004,3157.6,3157.5,0.001]
[1765800084323,43.41262834,3157.6,3157.5,0.001]
[1765800084646,45.54974657,3157.6,3157.5,0.001]
[1765800087457,46.17579016,3157.6,3157.5,0.001]
[1765800088360,39.25056401,3157.2,3157.0,0.001]
[1765800088656,9.75056401,3157.2,3157.0,0.001]
[1765800088835,39.75056401,3157.2,3157.0,0.001]
[1765800089029,41.49781144,3157.2,3157.0,0.001]
[1765800089223,41.90331544,3157.2,3157.0,0.001]
[1765800089754,45.07067892,3157.2,3157.0,0.001]
[1765800090060,39.84280363,3157.2,3157.0,0.001]
[1765800090354,4.3873854,3157.2,3157.0,0.001]
[1765800090523,3.30691011,3157.2,3157.0,0.001]
[1765800090724,3.80691011,3157.2,3157.0,0.001]
[1765800090924,3.30691011,3157.2,3157.0,0.001]
[1765800091164,0.01267307,3157.6,3157.0,0.001]
[1765800091466,0.5,3157.5,3157.0,0.001]
[1765800091827,3.66710693,3157.5,3157.0,0.001]
[1765800092369,6.83421386,3157.5,3157.0,0.001]
[1765800093928,0.58047529,3157.4,3157.0,0.001]
[1765800094729,0.01267307,3157.3,3157.0,0.001]
[1765800095958,3.16736348,3157.2,3157.0,0.001]
[1765800096833,3.13633378,3157.2,3157.0,0.001]
[1765800097933,3.13553378,3157.2,3157.0,0.001]
[1765800098361,4.4056034,3157.2,3157.0,0.001]
[1765800098661,34.85592859,3157.2,3157.0,0.001]
[1765800098859,34.06265059,3157.2,3157.0,0.001]
[1765800099359,29.72549456,3157.2,3157.0,0.001]
[1765800099554,4.93798056,3157.2,3157.0,0.001]
[1765800099756,34.93798056,3157.2,3157.0,0.001]
[1765800100859,42.60913659,3157.2,3157.0,0.001]
[1765800101058,43.61229262,3157.2,3157.0,0.001]
[1765800101638,34.70825549,3157.1,3157.0,0.001]
[1765800101975,34.31997929,3156.9,3156.7,0.001]
[1765800102132,34.91763132,3156.8,3156.7,0.001]
[1765800102466,38.65713532,3156.8,3156.7,0.001]
[1765800102630,41.82490014,3156.8,3156.7,0.001]
[1765800102829,36.25163727,3156.8,3156.7,0.001]
[1765800103035,3.334,3156.6,3156.5,0.001]
[1765800103281,12.286097,3156.3,3156.1,0.001]
[1765800103435,5.27879429,3156.3,3156.1,0.001]
[1765800103760,11.90053323,3156.3,3156.1,0.001]
[1765800103963,13.09058655,3156.3,3156.1,0.001]
[1765800104573,16.25885319,3156.3,3156.1,0.001]
[1765800104772,0.98597929,3156.0,3154.5,0.001]
[1765800105067,37.78400605,3155.9,3154.5,0.001]
[1765800106720,40.95267425,3155.9,3154.5,0.001]
[1765800107018,43.66281839,3155.9,3154.5,0.001]
[1765800107214,18.60697339,3155.9,3154.5,0.001]
[1765800107710,43.66281839,3155.9,3154.5,0.001]
[1765800107909,40.03840239,3155.9,3154.5,0.001]
[1765800108283,24.61709763,3155.9,3154.5,0.001]
[1765800108719,28.92712663,3155.9,3154.5,0.001]
[1765800108921,12.63220263,3155.9,3154.5,0.001]
[1765800109123,6.9719607,3155.9,3154.5,0.001]
[1765800109328,4.38973803,3155.9,3154.5,0.001]
[1765800109897,4.38973803,3155.9,3154.5,0.85017554]
[1765800109898,3.1686682,3155.9,3154.5,0.85017554]
[1765800110230,0.58047529,3155.9,3154.7,0.405504]
[1765800110431,0.58047529,3155.9,3154.5,0.001]
[1765800110721,3.74914349,3155.9,3154.5,0.001]
[1765800111723,0.501,3156.0,3154.6,0.405504]
[1765800111932,0.501,3156.0,3154.6,0.84917554]
[1765800112222,0.501,3156.0,3154.7,0.03169873]
[1765800112421,0.01267307,3156.2,3155.0,0.405504]
[1765800112826,0.01267307,3156.2,3155.2,0.405504]
[1765800113195,3.1810521,3156.2,3155.2,0.405504]
[1765800113742,3.1810521,3156.2,3155.1,6.33894328]
[1765800114703,6.34943113,3156.2,3155.1,6.33894328]
[1765800115031,6.31840143,3156.2,3155.0,0.58047529]
[1765800115233,0.01267307,3156.1,3155.0,0.58047529]
[1765800115398,0.501,3156.0,3155.0,0.58047529]
[1765800117434,3.66961307,3156.0,3155.1,6.33894328]
[1765800117935,0.01267307,3155.9,3155.1,6.33894328]
[1765800120337,3.18134127,3155.9,3155.1,6.33894328]
[1765800121216,3.18054127,3155.9,3155.1,6.33894328]
[1765800121731,3.18054127,3155.9,3155.1,3.16947164]
[1765800121942,3.76101656,3155.9,3155.0,3.16955311]
[1765800122103,3.76101656,3155.9,3154.9,0.001]
[1765800122843,3.88791065,3155.9,3154.9,0.001]
[1765800123021,4.64692588,3155.9,3154.9,0.001]
[1765800124019,0.72204245,3155.9,3154.9,0.001]
[1765800124234,0.002,3155.9,3154.9,0.98697929]
[1765800124826,0.002,3155.9,3155.1,0.405504]
[1765800125023,0.002,3155.9,3155.0,0.03169572]
[1765800125024,0.002,3155.9,3155.0,0.405504]
[1765800125564,3.6716682,3155.9,3154.9,0.001]
[1765800126212,4.25214349,3155.9,3154.9,0.001]
[1765800129447,4.26481656,3155.9,3154.9,0.001]
[1765800129748,5.00942238,3155.9,3154.9,0.001]
[1765800131346,11.22346238,3155.9,3154.9,0.001]
[1765800131554,9.62146238,3155.9,3154.9,0.001]
[1765800131846,16.22860238,3155.9,3154.9,0.001]
[1765800132247,14.28898938,3155.9,3154.9,0.001]
[1765800132546,12.67440238,3155.9,3154.9,0.001]
[1765800132945,27.46012438,3155.9,3154.9,0.001]
[1765800133117,15.65654938,3155.9,3154.9,0.001]
[1765800133323,12.80320938,3155.9,3154.9,0.001]
[1765800133628,12.77217968,3155.9,3154.9,0.001]
[1765800133952,19.93249268,3155.9,3154.9,0.001]
[1765800134833,20.05942099,3155.9,3154.9,0.001]
[1765800135043,35.51082499,3155.9,3154.9,0.001]
[1765800136532,35.51282499,3155.9,3154.9,0.001]
[1765800137654,34.78930599,3155.9,3154.9,0.001]
[1765800137858,26.86460099,3155.9,3154.9,0.001]
[1765800138042,36.81660499,3155.9,3154.9,0.001]
[1765800138357,5.10732099,3155.9,3154.9,0.001]
[1765800138569,4.36271517,3155.9,3154.9,0.001]
[1765800143729,25.71515517,3155.9,3154.9,0.001]
[1765800143929,8.18393517,3155.9,3154.9,0.001]
[1765800144563,8.18313517,3155.9,3154.9,0.001]
[1765800144765,4.36191517,3155.9,3154.9,0.001]
[1765800144966,9.00684285,3155.9,3154.9,0.001]
[1765800145339,9.41234685,3155.9,3154.9,0.001]
[1765800145962,5.11623085,3155.9,3154.9,0.001]
[1765800147782,33.62654285,3155.9,3154.9,0.001]
[1765800147998,32.87254985,3155.9,3154.9,0.001]
[1765800148457,27.64683285,3155.9,3154.9,0.001]
[1765800148871,26.64244585,3155.9,3154.9,0.001]
[1765800149665,29.98144585,3155.9,3154.9,0.001]
[1765800149869,38.86073485,3155.9,3154.9,0.001]
[1765800151153,38.73380654,3155.9,3154.9,0.001]
[1765800152585,38.70277684,3155.9,3154.9,0.001]
[1765800152796,25.38636684,3155.9,3154.9,0.001]
[1765800152975,8.70277684,3155.9,3154.9,0.001]
[1765800153181,38.70277684,3155.9,3154.9,0.001]
[1765800153480,38.23734384,3155.9,3154.9,0.001]
[1765800153680,33.10674184,3155.9,3154.9,0.001]
[1765800153987,4.45727284,3155.9,3154.9,0.001]
[1765800154196,8.87733584,3155.9,3154.9,0.001]
[1765800155093,12.03948884,3155.9,3154.9,0.001]
[1765800155662,12.44499284,3155.9,3154.9,0.001]
[1765800156087,33.77942884,3155.9,3154.9,0.001]
[1765800156265,31.05589584,3155.9,3154.9,0.001]
[1765800156467,34.39489584,3155.9,3154.9,0.001]
[1765800157190,38.70377684,3155.9,3154.9,0.001]
[1765800161590,30.405504,3155.6,3154.9,0.001]
[1765800161769,40.73201121,3155.5,3154.9,0.001]
[1765800161970,37.52240808,3155.5,3154.9,0.001]
[1765800163212,40.69147795,3155.5,3154.9,0.001]
[1765800163592,21.30137416,3155.5,3154.9,0.001]
[1765800163797,4.26321823,3155.5,3154.9,0.001]
[1765800167383,8.60674386,3155.5,3154.9,0.001]
[1765800167711,44.53381251,3155.5,3154.9,0.001]
[1765800169096,47.87281251,3155.5,3154.9,0.001]
[1765800170215,57.38002212,3155.5,3154.9,0.001]
[1765800170394,23.7996797,3155.0,3154.9,0.001]
[1765800170719,38.5852976,3155.0,3154.9,0.001]
[1765800171485,43.45646142,3155.0,3154.9,0.001]
[1765800171716,43.46913449,3155.0,3154.9,0.001]
[1765800173441,41.18387249,3155.0,3154.9,0.001]
[1765800173623,39.39982049,3155.0,3154.9,0.001]
[1765800174705,43.46913449,3155.0,3154.9,0.001]
[1765800177112,13.46913449,3155.0,3154.9,0.001]
[1765800177314,43.46913449,3155.0,3154.9,0.001]
[1765800178111,43.59611398,3155.0,3154.9,0.001]
[1765800178595,0.405504,3154.6,3154.5,0.001]
[1765800178801,33.76041008,3154.6,3154.5,0.001]
[1765800179108,9.7871373,3154.6,3154.5,0.001]
[1765800179309,37.52637958,3154.6,3154.5,0.001]
[1765800180009,37.14380858,3154.6,3154.5,0.001]
[1765800180206,40.69635358,3154.6,3154.5,0.001]
[1765800180805,40.30955858,3154.6,3154.5,0.001]
[1765800181007,3.76312236,3154.6,3154.5,0.001]
[1765800181443,3.68464707,3154.6,3154.5,0.001]
[1765800181739,4.26512236,3154.6,3154.5,0.001]
[1765800182531,0.502,3154.6,3154.5,0.001]
[1765800182737,0.01467307,3155.5,3154.5,0.001]
[1765800182738,3.16947164,3155.1,3154.5,0.001]
[1765800183038,0.502,3155.0,3154.5,0.001]
[1765800183705,0.51467307,3155.0,3154.5,0.001]
[1765800183919,3.16967257,3154.9,3154.5,0.001]
[1765800184625,0.58047529,3154.8,3154.5,0.001]
[1765800185332,0.01267307,3154.6,3154.5,0.001]
[1765800185536,0.51467307,3154.6,3154.5,0.001]
[1765800186935,3.68464707,3154.6,3154.5,0.001]
[1765800187234,3.671974,3154.6,3154.5,0.001]
[1765800187536,3.68464707,3154.6,3154.5,0.001]
[1765800187831,3.671974,3154.6,3154.5,0.001]
[1765800188234,0.502,3154.6,3154.5,0.001]
[1765800189038,3.64325357,3154.6,3154.5,0.001]
[1765800190926,3.64245357,3154.6,3154.5,0.001]
[1765800199969,4.22292886,3154.6,3154.5,0.001]
[1765800207263,5.39796509,3154.6,3154.5,0.001]
[1765800209000,9.74285105,3154.6,3154.5,0.001]
[1765800209352,5.39796509,3154.6,3154.5,0.001]
[1765800209570,9.74285105,3154.6,3154.5,0.001]
[1765800210764,39.74285105,3154.6,3154.5,0.001]
[1765800211382,9.79426359,3154.6,3154.5,0.001]
[1765800211551,9.92123905,3154.6,3154.5,0.001]
[1765800211752,5.56713405,3154.6,3154.5,0.001]
[1765800211950,20.29734205,3154.6,3154.5,0.001]
[1765800212860,22.49905105,3154.6,3154.5,0.001]
[1765800213158,22.15767205,3154.6,3154.5,0.001]
[1765800213559,21.84251805,3154.6,3154.5,0.001]
[1765800213758,5.56713405,3154.6,3154.5,0.001]
[1765800213960,20.28805105,3154.6,3154.5,0.001]
[1765800214164,10.73714805,3154.6,3154.5,0.001]
[1765800214392,10.73634805,3154.6,3154.5,0.001]
[1765800214893,5.56633405,3154.6,3154.5,0.001]
[1765800215099,18.88101405,3154.6,3154.5,0.001]
[1765800215964,18.38021801,3154.6,3154.5,0.001]
[1765800216293,17.97329701,3154.6,3154.5,0.001]
[1765800216489,9.40922001,3154.6,3154.5,0.001]
[1765800216793,9.91122001,3154.6,3154.5,0.001]
[1765800217378,9.9144918,3154.6,3154.5,0.001]
[1765800217587,39.9144918,3154.6,3154.5,0.001]
[1765800217783,44.26064955,3154.6,3154.5,0.001]
[1765800217985,30.0,3154.4,3154.1,0.001]
[1765800218172,4.92663304,3154.2,3154.1,0.001]
[1765800218390,8.17274629,3154.2,3154.1,0.001]
[1765800218596,0.58047529,3154.2,3154.1,0.001]
[1765800218816,1.20945155,3154.2,3154.1,0.001]
[1765800220574,4.37982755,3154.2,3154.1,0.001]
[1765800221316,6.02028313,3154.2,3154.1,0.001]
[1765800222683,6.02028313,3154.2,3153.6,0.001]
[1765800222684,13.614915,3153.8,3153.6,0.001]
[1765800222906,20.0430892,3154.2,3153.6,0.001]
[1765800222907,11.59981004,3153.7,3153.6,0.001]
[1765800223079,0.58047529,3153.8,3153.6,0.001]
[1765800223284,1.45444596,3153.7,3153.6,0.001]
[1765800224975,4.62532461,3153.7,3153.6,0.001]
[1765800225611,5.91027114,3153.7,3153.6,0.001]
[1765800226376,6.49074643,3153.7,3153.6,0.001]
[1765800226882,36.49074643,3153.7,3153.6,0.001]
[1765800227284,40.83690418,3153.7,3153.6,0.001]
[1765800227479,41.24240818,3153.7,3153.6,0.001]
[1765800227802,24.38531343,3153.7,3153.6,0.001]
[1765800228004,9.26608843,3153.7,3153.6,0.001]
[1765800228176,9.76808843,3153.7,3153.6,0.001]
[1765800228902,24.74476143,3153.7,3153.6,0.001]
[1765800229908,36.49074643,3153.7,3153.6,0.001]
[1765800230400,35.42319043,3153.7,3153.6,0.001]
[1765800231101,36.49074643,3153.7,3153.6,0.001]
[1765800231807,9.75681143,3153.7,3153.6,0.001]
[1765800232102,10.34755443,3153.7,3153.6,0.001]
[1765800233007,14.69371218,3153.7,3153.6,0.001]
[1765800233206,37.20151718,3153.7,3153.6,0.001]
[1765800233376,9.41013543,3153.7,3153.6,0.001]
[1765800233578,5.98874643,3153.7,3153.6,0.001]
[1765800233780,5.21847297,3153.7,3153.6,0.001]
[1765800234781,9.56463072,3153.7,3153.6,0.001]
[1765800237707,9.56383072,3153.7,3153.6,0.001]
[1765800240596,4.7029999,3153.7,3153.6,0.001]
[1765800240798,4.25335394,3153.7,3153.6,0.001]
[1765800241201,4.26602701,3153.7,3153.6,0.001]
[1765800241604,4.39301577,3153.7,3153.6,0.001]
[1765800246927,8.73917352,3153.7,3153.6,0.001]
[1765800247129,9.93143602,3153.7,3153.6,0.001]
[1765800248731,30.89982702,3153.7,3153.6,0.001]
[1765800248923,18.42025602,3153.7,3153.6,0.001]
[1765800251906,22.76641377,3153.7,3153.6,0.001]